bitfinex-derivatives/quotes_ETHF0:USTF0_20250210
["timestamp","ask_amount","ask_price","bid_price","bid_amount"]
[1739152909038,0.00357388,2580.9,2580.5,3.2078]
[1739152909236,3.2078,2581.6,2580.8,3.2078]
[1739152910031,0.00576602,2581.5,2580.8,3.2078]
[1739152910232,0.00576602,2581.5,2581.2,3.2078]
[1739152910534,3.2078,2582.4,2581.3,2.308]
[1739152910833,3.2078,2582.4,2581.5,3.2078]
[1739152911230,3.2078,2582.8,2581.5,3.2078]
[1739152911438,3.2078,2582.4,2581.5,3.2078]
[1739152911631,3.2078,2582.1,2581.9,0.00580619]
[1739152912535,9.2078,2582.1,2581.9,0.00580619]
[1739152913632,9.2078,2582.1,2581.9,0.00146271]
[1739152914035,3.2078,2582.1,2581.9,0.00146271]
[1739152914436,3.2078,2582.6,2581.9,0.00146271]
[1739152914637,3.2078,2582.3,2581.9,0.00146271]
[1739152915140,0.00434348,2582.5,2581.9,0.00146271]
[1739152915336,3.2078,2582.3,2581.9,0.00146271]
[1739152915943,2.93713341,2582.4,2581.9,0.00146271]
[1739152915944,3.2078,2582.0,2581.9,0.00146271]
[1739152916539,3.2078,2582.3,2581.9,0.00146271]
[1739152916743,3.2078,2582.0,2581.9,0.00146271]
[1739152917339,9.2078,2582.0,2581.9,0.00146271]
[1739152918647,9.2078,2582.0,2581.9,0.00036849]
[1739152918946,12.14493341,2582.0,2580.7,3.9122]
[1739152919153,3.2078,2581.2,2580.7,3.9122]
[1739152920253,3.2078,2580.8,2580.7,0.00580619]
[1739152920748,13.60923796,2580.8,2579.7,3.7463]
[1739152920945,3.2078,2580.1,2579.7,3.7463]
[1739152921246,3.2078,2580.1,2579.6,18.445]
[1739152921644,3.2078,2579.8,2579.6,18.445]
[1739152921849,3.2078,2579.8,2579.6,18.45080619]
[1739152922247,3.2078,2580.1,2579.6,18.45080619]
[1739152922657,3.2078,2579.8,2579.6,0.00580619]
[1739152923653,3.2078,2580.2,2579.6,0.00580619]
[1739152923959,3.2078,2580.3,2579.6,0.00580619]
[1739152924156,3.2078,2580.3,2579.6,3.21360619]
[1739152924357,3.2078,2580.0,2579.6,0.00580619]
[1739152925054,3.2078,2580.3,2579.6,0.00580619]
[1739152925359,3.2078,2580.3,2579.6,3.21360619]
[1739152926355,3.2078,2579.9,2579.6,0.00580619]
[1739152926556,2.93713341,2579.9,2579.6,0.00580619]
[1739152927561,2.93713341,2579.8,2579.6,0.00580619]
[1739152928954,3.2078,2579.9,2579.6,0.00580619]
[1739152929351,3.2078,2580.3,2579.6,0.00580619]
[1739152930156,3.2078,2580.0,2579.6,0.00146168]
[1739152930562,3.2078,2580.3,2579.6,0.00146168]
[1739152930764,3.2078,2580.7,2579.7,5.5118]
[1739152930966,3.2078,2581.0,2580.0,3.2078]
[1739152931159,3.2078,2581.0,2580.3,3.2078]
[1739152931654,3.2078,2580.9,2580.0,3.2078]
[1739152931859,3.598,2581.1,2580.3,3.2078]
[1739152932059,3.2078,2581.0,2580.3,3.2078]
[1739152932254,3.2078,2581.4,2580.6,3.2078]
[1739152932556,3.7785,2581.6,2580.6,3.2078]
[1739152932761,3.2078,2581.3,2580.7,3.8145]
[1739152932960,3.2078,2581.6,2580.9,3.2078]
[1739152933157,7.3419,2582.5,2580.9,3.2078]
[1739152933158,3.2078,2582.0,2580.9,3.2078]
[1739152933366,3.2078,2581.7,2580.7,3.8145]
[1739152933658,3.2078,2581.4,2580.7,3.8145]
[1739152934664,3.2078,2581.0,2580.7,3.8145]
[1739152934863,3.7785,2582.2,2580.5,2.304]
[1739152934864,3.2078,2580.9,2580.5,2.304]
[1739152935062,3.2078,2581.3,2580.5,2.304]
[1739152935265,3.2078,2581.3,2580.5,5.5118]
[1739152935870,3.2078,2581.3,2580.5,2.304]
[1739152936166,3.2078,2581.4,2580.8,3.2078]
[1739152936658,3.21360619,2581.2,2580.5,5.5118]
[1739152936971,3.21360619,2581.2,2580.5,2.304]
[1739152937167,3.21360619,2581.2,2580.5,5.5118]
[1739152937465,3.21360619,2581.2,2580.5,2.304]
[1739152937860,0.00580619,2581.2,2580.5,5.5118]
[1739152938061,0.00580619,2581.2,2580.8,3.2078]
[1739152938373,0.00580619,2581.2,2580.9,3.8246]
[1739152938967,0.00580619,2581.2,2581.1,3.2078]
[1739152939469,0.00580619,2581.2,2580.9,3.83040619]
[1739152939662,0.00580619,2581.2,2580.9,0.00580619]
[1739152940063,3.21360619,2581.2,2580.9,0.00580619]
[1739152940264,0.00580619,2581.2,2580.9,0.00580619]
[1739152940567,3.21360619,2581.2,2580.9,0.00580619]
[1739152940958,4.28866854,2581.1,2580.1,3.7497]
[1739152941156,3.2078,2580.5,2580.1,3.7497]
[1739152941359,3.2078,2580.6,2580.1,3.7497]
[1739152941971,3.2078,2580.6,2579.9,3.2078]
[1739152942159,4.28866854,2580.9,2580.3,3.2078]
[1739152942160,3.2078,2580.9,2580.3,3.2078]
[1739152942363,3.2078,2580.9,2580.1,0.00580619]
[1739152942560,3.2078,2580.6,2580.1,0.00580619]
[1739152942765,3.2078,2580.9,2580.2,3.2078]
[1739152943569,3.2078,2580.9,2580.2,7.1167]
[1739152943963,0.00580619,2581.2,2580.5,3.2078]
[1739152944259,0.00580619,2581.2,2580.8,3.2078]
[1739152945366,7.1217,2582.5,2581.1,3.2078]
[1739152945671,7.1217,2582.5,2580.8,6.77483]
[1739152945672,3.2078,2582.2,2581.6,3.2078]
[1739152945971,3.2078,2582.8,2581.9,3.2078]
[1739152946363,3.2078,2582.8,2581.9,5.5088]
[1739152946668,0.00580619,2582.6,2582.1,0.00580619]
[1739152947073,3.2078,2582.5,2582.1,0.00580619]
[1739152947868,6.14493341,2582.4,2582.1,0.00580619]
[1739152949072,3.2078,2582.4,2582.1,0.00580619]
[1739152950382,3.2078,2582.4,2582.1,0.00146305]
[1739152951673,4.17556144,2582.3,2582.1,0.00146305]
[1739152951879,7.75526144,2582.3,2581.2,3.7862]
[1739152952176,3.2078,2581.6,2581.2,3.7862]
[1739152952369,3.2078,2581.6,2581.0,3.7493]
[1739152952568,3.2078,2581.6,2580.5,3.2078]
[1739152952764,3.2078,2581.0,2580.6,3.9586]
[1739152952964,3.2078,2581.0,2580.8,0.00580619]
[1739152953468,0.00580619,2581.3,2580.8,0.00580619]
[1739152954170,3.2078,2581.0,2580.8,0.00580619]
[1739152955475,9.2078,2581.0,2580.2,18.441]
[1739152955675,3.2078,2581.1,2580.2,18.441]
[1739152956071,3.2078,2580.8,2580.2,21.6488]
[1739152956671,3.2078,2580.8,2580.2,21.65460619]
[1739152957178,3.2078,2581.1,2580.2,21.65460619]
[1739152957483,3.2078,2581.1,2580.3,3.9094]
[1739152958784,3.2078,2581.1,2580.4,40.8]
[1739152959278,3.2078,2581.1,2580.3,6.2084]
[1739152959279,3.2078,2580.8,2580.3,3.9094]
[1739152959482,3.2078,2580.4,2580.2,18.44680619]
[1739152959781,3.2078,2580.7,2580.2,18.44680619]
[1739152959980,4.37419216,2581.2,2580.2,18.44680619]
[1739152959981,0.77474,2581.2,2580.2,18.44680619]
[1739152960177,3.2078,2580.3,2580.2,18.44680619]
[1739152960373,3.2078,2580.3,2580.2,0.00580619]
[1739152962584,3.2078,2580.3,2580.2,0.00146203]
[1739152963888,3.2078,2580.7,2580.2,0.00146203]
[1739152964078,3.2078,2581.2,2580.2,5.50726203]
[1739152964279,3.2078,2581.2,2580.5,3.2078]
[1739152964583,3.2078,2581.2,2580.3,3.9446]
[1739152964884,3.2078,2581.2,2580.4,3.2078]
[1739152965890,3.21360619,2581.3,2580.4,3.2078]
[1739152966181,3.2078,2581.1,2580.3,3.9446]
[1739152967691,3.2078,2580.9,2580.2,0.00146203]
[1739152967887,3.2078,2580.7,2580.2,0.00146203]
[1739152968084,3.2078,2580.3,2580.2,0.00146203]
[1739152968283,3.2078,2580.7,2580.2,0.00146203]
[1739152968882,3.2078,2580.4,2580.2,0.00146203]
[1739152969989,8.26786123,2580.3,2579.4,3.2078]
[1739152970187,3.2078,2580.1,2579.4,3.2078]
[1739152970590,3.2078,2579.8,2579.1,3.8542]
[1739152970990,0.00580619,2579.7,2579.2,0.00533246]
[1739152971685,3.2078,2579.4,2579.2,0.00533246]
[1739152972387,0.00580619,2579.7,2579.2,0.00533246]
[1739152974184,0.00580619,2579.7,2579.4,3.2078]
[1739152974393,3.2078,2580.8,2579.5,2.297]
[1739152974579,3.2078,2580.8,2579.7,3.2078]
[1739152974887,3.2078,2580.8,2579.9,3.2078]
[1739152975484,3.2078,2580.8,2579.6,3.2078]
[1739152975692,0.00580619,2580.6,2580.1,0.00580619]
[1739152976486,3.2078,2580.2,2580.1,0.00580619]
[1739152977290,3.2078,2580.2,2579.1,3.7448]
[1739152977590,3.2078,2580.2,2579.2,3.2078]
[1739152977787,3.2078,2580.2,2579.5,3.2078]
[1739152977987,3.21360619,2580.6,2579.6,3.2078]
[1739152978293,3.21360619,2580.6,2579.9,3.2078]
[1739152978480,3.21360619,2580.6,2580.0,3.7161]
[1739152979283,0.00580619,2580.6,2580.0,3.7161]
[1739152979487,0.00580619,2580.6,2580.2,3.2078]
[1739152980892,0.00580619,2580.6,2580.5,3.2078]
[1739152981098,3.2078,2581.6,2580.5,3.2078]
[1739152981285,3.2078,2581.6,2580.9,3.2078]
[1739152982502,0.00580619,2581.5,2580.9,3.2078]
[1739152982792,3.2078,2581.3,2580.6,3.2078]
[1739152982997,0.00580619,2581.5,2580.7,3.2078]
[1739152983192,0.00580619,2581.5,2580.1,2.296]
[1739152983193,3.2078,2581.1,2580.4,3.2078]
[1739152983591,3.2078,2581.3,2580.7,3.2078]
[1739152983791,0.00580619,2581.5,2580.7,3.2078]
[1739152984392,0.00580619,2581.5,2580.8,3.5822]
[1739152984594,3.2078,2581.3,2580.8,3.5822]
[1739152984799,3.2078,2581.3,2580.1,3.2078]
[1739152984994,0.00580619,2581.5,2580.1,6.79]
[1739152984995,3.2078,2580.9,2580.1,6.79]
[1739152985193,2.93713341,2580.8,2580.1,6.79]
[1739152985394,2.93713341,2580.8,2580.1,3.5822]
[1739152985795,3.2078,2580.9,2580.0,3.7161]
[1739152985995,3.2078,2580.2,2579.9,18.448]
[1739152986699,3.2078,2580.7,2579.9,18.448]
[1739152986899,3.2078,2580.7,2580.1,3.2078]
[1739152987196,3.2078,2581.4,2580.5,3.2078]
[1739152987397,3.2078,2581.1,2580.3,3.2078]
[1739152987599,3.2078,2581.1,2580.2,3.7534]
[1739152987789,3.2078,2580.8,2580.2,3.7534]
[1739152988098,3.2078,2580.8,2579.7,5.5018]
[1739152988300,3.2078,2581.1,2580.0,3.2078]
[1739152988499,3.2078,2581.1,2579.9,3.2078]
[1739152988798,3.2078,2580.7,2579.9,3.2078]
[1739152988989,3.2078,2580.1,2580.0,0.00580619]
[1739152989602,3.2078,2580.1,2578.8,3.2078]
[1739152990101,3.2078,2579.8,2578.6,40.8]
[1739152990293,3.2078,2579.4,2578.5,3.2078]
[1739152990495,3.2078,2578.8,2578.2,21.6558]
[1739152991701,3.2078,2578.9,2578.2,18.448]
[1739152992104,3.2078,2578.9,2578.2,21.6558]
[1739152992401,3.2078,2578.9,2578.2,18.448]
[1739152993395,3.2078,2578.9,2578.2,21.6558]
[1739152994403,3.2078,2579.0,2578.2,21.6558]
[1739152997992,7.1195,2579.0,2578.2,21.6558]
[1739152999305,3.2078,2578.7,2578.2,18.448]
[1739152999501,3.9117,2579.0,2578.2,18.448]
[1739153000201,5.85113341,2578.9,2578.2,18.448]
[1739153000407,3.2078,2578.8,2578.2,18.448]
[1739153000901,3.2078,2578.5,2577.9,10.7645]
[1739153001201,3.2078,2578.0,2577.4,3.2078]
[1739153001408,2.93713341,2578.0,2577.4,3.2078]
[1739153001597,2.93713341,2578.0,2577.7,3.2078]
[1739153002706,6.14493341,2578.0,2577.4,3.2078]
[1739153002896,2.93713341,2578.0,2577.4,3.2078]
[1739153003105,3.2078,2578.0,2577.4,3.2078]
[1739153003808,3.2078,2577.6,2577.2,7.6551]
[1739153004502,3.2078,2577.9,2577.2,7.6551]
[1739153004901,3.2078,2577.6,2577.0,21.6648]
[1739153005212,3.2078,2577.9,2577.0,18.457]
[1739153005903,3.2078,2577.5,2577.0,18.457]
[1739153006702,3.2078,2577.7,2577.0,18.457]
[1739153006908,3.2078,2577.5,2577.0,18.457]
[1739153008500,3.2078,2578.0,2577.3,3.2078]
[1739153008706,3.2078,2578.0,2577.4,7.3967]
[1739153009207,3.2078,2577.6,2577.0,18.457]
[1739153009407,3.2078,2577.6,2577.1,40.8]
[1739153009702,3.2078,2577.6,2577.0,18.457]
[1739153009907,3.2078,2577.2,2577.0,18.457]
[1739153010306,3.2078,2577.6,2577.0,18.457]
[1739153010704,3.2078,2577.3,2577.0,18.457]
[1739153012416,3.2078,2577.2,2576.8,7.5776]
[1739153012714,3.2078,2577.2,2576.7,3.2078]
[1739153013610,3.2078,2576.8,2576.3,7.6457]
[1739153013803,3.2078,2576.7,2576.3,7.6457]
[1739153014210,3.2078,2576.7,2576.0,3.2078]
[1739153014803,3.2078,2576.4,2575.7,5.4998]
[1739153015109,3.2078,2576.4,2575.6,7.537]
[1739153015503,3.2078,2576.1,2575.6,7.537]
[1739153016811,3.2078,2576.5,2575.6,7.537]
[1739153017810,3.2078,2576.2,2575.6,7.537]
[1739153018011,4.07862818,2576.4,2575.6,7.537]
[1739153018212,3.2078,2576.5,2575.6,7.537]
[1739153018414,3.2078,2576.2,2575.6,7.537]
[1739153018811,3.2078,2576.2,2575.4,3.2078]
[1739153019116,3.2078,2575.9,2575.4,3.2078]
[1739153019417,3.2078,2576.2,2575.1,10.7767]
[1739153019615,3.2078,2575.8,2575.1,10.7767]
[1739153019823,3.2078,2575.5,2574.8,3.2078]
[1739153020020,6.14493341,2575.5,2574.8,6.8628]
[1739153020315,2.93713341,2575.5,2574.8,6.8628]
[1739153020507,0.00581767,2575.4,2574.8,6.8628]
[1739153020709,0.00581767,2575.4,2575.1,3.2078]
[1739153020909,0.00581767,2575.4,2575.2,3.2078]
[1739153021716,0.00581767,2575.4,2575.3,3.7279]
[1739153022412,0.00581767,2575.4,2575.3,47.7357]
[1739153022715,0.00581767,2575.4,2574.9,3.2078]
[1739153024507,0.00581767,2575.4,2575.2,3.2078]
[1739153024821,3.2078,2576.4,2575.3,3.9745]
[1739153025215,3.2078,2576.4,2575.3,7.6589]
[1739153025411,3.2078,2576.4,2575.5,3.2078]
[1739153025726,3.2078,2576.7,2575.8,3.2078]
[1739153025909,0.00581767,2576.2,2576.1,3.2078]
[1739153026310,3.2078,2577.0,2576.1,9.2078]
[1739153026512,3.2078,2577.3,2576.4,3.2078]
[1739153026914,3.2078,2576.7,2576.1,3.2078]
[1739153027115,3.2078,2576.4,2575.7,6.8307]
[1739153027320,3.2078,2576.4,2575.7,3.2078]
[1739153027513,0.00581767,2576.3,2575.8,0.00581767]
[1739153027914,3.2078,2576.2,2575.8,0.00581767]
[1739153028316,0.00581767,2576.3,2575.8,0.00581767]
[1739153028317,0.00581767,2576.3,2575.8,3.21361767]
[1739153028822,3.2078,2576.2,2575.8,0.00581767]
[1739153029222,3.2078,2575.9,2575.8,0.00581767]
[1739153029615,3.2078,2576.2,2575.8,0.00581767]
[1739153030016,3.2078,2575.9,2575.8,0.00581767]
[1739153030216,0.00581767,2576.3,2575.8,0.00581767]
[1739153030217,3.2078,2576.2,2575.8,0.00581767]
[1739153031019,0.00581767,2576.3,2575.8,0.00581767]
[1739153031319,0.00581767,2576.3,2576.0,3.2078]
[1739153031621,0.00581767,2576.3,2575.9,3.2078]
[1739153032422,3.2078,2577.1,2576.2,3.2078]
[1739153032617,3.2078,2577.1,2576.5,3.2078]
[1739153033720,0.00581767,2577.1,2576.8,3.2078]
[1739153035420,0.00581767,2577.1,2576.6,7.0071]
[1739153035626,0.00581767,2577.1,2576.6,3.7993]
[1739153036029,3.2078,2577.0,2576.6,3.7993]
[1739153036520,3.2078,2577.0,2576.2,2.289]
[1739153036824,3.2078,2577.0,2575.8,3.85211767]
[1739153036825,3.2078,2576.7,2576.0,2.289]
[1739153037130,3.2078,2576.4,2575.9,3.8316]
[1739153037321,3.2078,2576.4,2575.8,0.00581767]
[1739153037918,3.2078,2576.1,2575.8,0.00581767]
[1739153038320,7.7816,2576.0,2575.8,0.00581767]
[1739153038525,2.93713341,2575.9,2575.8,0.00581767]
[1739153038827,2.93713341,2575.9,2574.8,3.2078]
[1739153039028,3.2078,2575.6,2574.8,3.2078]
[1739153039326,7.7816,2576.0,2575.1,3.2078]
[1739153039525,3.87605374,2576.0,2575.4,3.2078]
[1739153039933,0.00581767,2575.6,2575.4,3.2078]
[1739153040125,0.00581767,2575.6,2575.1,3.21361767]
[1739153040525,0.00581767,2575.6,2575.4,3.2078]
[1739153040729,0.00581767,2575.6,2575.1,0.00581767]
[1739153040932,0.00581767,2575.6,2575.1,3.21361767]
[1739153041228,0.00581767,2575.6,2575.1,0.00581767]
[1739153042134,3.2078,2575.4,2575.1,0.00581767]
[1739153042442,4.48991465,2575.3,2574.4,3.2078]
[1739153042629,3.2078,2575.0,2574.4,3.2078]
[1739153043029,3.99705681,2574.9,2574.4,3.2078]
[1739153043337,3.2078,2574.5,2573.8,3.2078]
[1739153043532,2.93713341,2574.4,2573.8,3.2078]
[1739153043934,2.93713341,2574.4,2574.1,3.2078]
[1739153044830,3.2078,2574.4,2573.8,0.00581767]
[1739153045131,3.06469,2574.7,2573.8,0.00581767]
[1739153045132,3.2078,2574.1,2573.8,0.00581767]
[1739153045430,3.2078,2574.4,2573.8,0.00581767]
[1739153045629,0.00581767,2574.2,2574.0,3.2078]
[1739153045933,0.00581767,2574.2,2574.1,3.2078]
[1739153046337,0.00581767,2574.2,2574.1,9.2078]
[1739153046537,0.21583084,2574.9,2574.1,9.2078]
[1739153046741,3.2078,2575.4,2574.1,9.2078]
[1739153046742,0.21583084,2575.1,2574.7,3.2078]
[1739153046935,0.21583084,2575.1,2574.8,40.8]
[1739153047644,0.21583084,2575.1,2574.5,5.4958]
[1739153047841,3.2078,2575.0,2574.5,2.288]
[1739153048037,3.2078,2575.0,2574.2,3.2078]
[1739153048244,0.21583084,2575.1,2574.2,3.2078]
[1739153048539,3.42363084,2575.0,2574.2,3.2078]
[1739153048738,0.21583084,2575.1,2574.2,3.2078]
[1739153048941,0.21583084,2575.1,2574.0,2.288]
[1739153048942,0.21583084,2575.1,2574.7,3.2078]
[1739153049134,0.21583084,2575.1,2575.0,3.2078]
[1739153049341,0.00581767,2575.2,2575.0,3.2078]
[1739153049541,0.21583084,2575.9,2575.1,3.7836]
[1739153049845,0.21583084,2575.9,2575.6,3.2078]
[1739153050145,0.21583084,2576.2,2575.6,3.2078]
[1739153050345,0.21583084,2576.2,2575.5,3.2078]
[1739153050346,3.42363084,2576.2,2575.5,3.2078]
[1739153050544,3.2078,2576.2,2575.5,3.2078]
[1739153050744,0.00581767,2576.1,2575.6,0.00581767]
[1739153052043,2.94295108,2576.1,2575.7,3.2078]
[1739153052243,0.00581767,2576.1,2576.0,3.2078]
[1739153053039,0.00581767,2576.1,2575.6,0.00581767]
[1739153053040,0.00581767,2576.1,2575.7,3.2078]
[1739153053342,0.00581767,2576.1,2575.6,0.00581767]
[1739153053548,0.00581767,2576.1,2575.6,3.21361767]
[1739153053746,0.00581767,2576.1,2575.9,3.2078]
[1739153054442,0.00581767,2576.1,2575.6,0.00581767]
[1739153054643,3.2078,2575.7,2575.6,0.00581767]
[1739153055245,3.42363084,2575.7,2575.6,0.00581767]
[1739153055446,13.59938849,2575.7,2574.7,3.6945]
[1739153055640,3.2078,2575.1,2574.1,5.4948]
[1739153055844,3.2078,2574.8,2574.1,5.4948]
[1739153056544,3.42363084,2575.1,2574.4,3.2078]
[1739153056742,0.00581767,2574.7,2574.4,3.2078]
[1739153056945,0.00581767,2574.7,2574.4,6.43277174]
[1739153057142,0.00581767,2574.7,2574.2,0.00581767]
[1739153057753,0.00581767,2574.7,2574.4,6.43277174]
[1739153058346,0.00581767,2574.7,2574.2,0.00581767]
[1739153058747,6.14493341,2574.6,2574.2,0.00581767]
[1739153059246,3.2078,2574.6,2574.2,0.00581767]
[1739153059646,0.00581767,2574.7,2574.2,0.00581767]
[1739153060547,3.2078,2574.4,2574.2,0.00581767]
[1739153060745,2.93713341,2574.3,2574.2,0.00581767]
[1739153061650,2.94295108,2574.7,2574.2,0.00581767]
[1739153061846,2.94295108,2574.7,2574.5,3.2078]
[1739153062045,0.00581767,2574.7,2574.5,3.2078]
[1739153062241,0.00581767,2574.7,2574.6,40.8]
[1739153062452,2.93713341,2575.2,2574.6,44.3987]
[1739153062641,3.7613,2575.8,2574.8,3.22497174]
[1739153062642,6.9691,2575.8,2574.8,3.22497174]
[1739153062842,3.2078,2575.5,2574.8,6.43277174]
[1739153063347,3.97713084,2575.8,2575.2,3.22497174]
[1739153063646,0.00581767,2575.4,2575.2,3.22497174]
[1739153063851,0.00581767,2575.4,2575.3,3.2078]
[1739153064051,0.00581767,2575.4,2575.3,7.1051]
[1739153064242,0.00581767,2575.4,2575.3,13.1051]
[1739153064552,3.42363084,2576.4,2575.3,13.1051]
[1739153064852,2.93713341,2576.3,2575.7,3.2078]
[1739153065047,3.2078,2576.1,2575.3,3.8973]
[1739153065255,3.2078,2575.7,2575.2,3.22497174]
[1739153065445,6.14493341,2575.7,2575.2,3.22497174]
[1739153065647,6.14493341,2575.7,2575.4,0.00581767]
[1739153065845,10.67963341,2575.6,2575.4,0.00581767]
[1739153066555,3.15296425,2575.6,2575.4,0.00581767]
[1739153066853,3.15296425,2575.6,2575.4,3.21361767]
[1739153067049,2.93713341,2575.6,2575.4,0.00581767]
[1739153067751,7.18423084,2575.9,2575.4,0.00581767]
[1739153067951,0.21583084,2575.9,2575.4,3.21361767]
[1739153068254,0.00581767,2576.0,2575.7,3.2078]
[1739153068653,0.00581767,2576.0,2575.8,2.285]
[1739153069357,0.00581767,2576.0,2575.8,8.285]
[1739153069651,0.00581767,2576.0,2575.8,2.285]
[1739153069856,0.00581767,2576.0,2575.8,8.285]
[1739153070350,2.93713341,2576.5,2575.8,8.285]
[1739153070555,2.93713341,2576.5,2576.0,3.22497174]
[1739153070851,2.93713341,2576.5,2575.9,3.2078]
[1739153070852,2.93713341,2576.5,2575.7,3.2078]
[1739153071652,3.2078,2576.3,2575.7,3.2078]
[1739153071952,3.78951767,2576.4,2575.7,3.2078]
[1739153072151,3.78951767,2576.4,2576.0,3.2078]
[1739153072354,0.00581767,2576.4,2576.0,3.2078]
[1739153072559,0.00581767,2576.4,2575.7,3.2078]
[1739153073248,0.00581767,2576.4,2576.0,3.2078]
[1739153073651,0.00581767,2576.4,2576.0,6.43277174]
[1739153074252,2.94295108,2576.4,2576.0,6.43277174]
[1739153074452,2.94295108,2576.4,2575.7,3.2078]
[1739153075059,2.94295108,2576.4,2576.0,3.2078]
[1739153076148,0.00581767,2576.4,2576.3,3.2078]
[1739153076651,0.00581767,2576.4,2576.1,6.0152]
[1739153076856,0.00581767,2576.4,2576.1,2.283]
[1739153077453,0.00581767,2576.4,2576.2,3.9065]
[1739153077655,0.00581767,2576.4,2576.1,2.283]
[1739153078648,2.94295108,2576.4,2575.7,3.2078]
[1739153078853,11.0881,2576.3,2575.7,3.2078]
[1739153079053,3.2078,2576.2,2575.4,18.49181767]
[1739153080064,3.2078,2575.9,2575.4,18.49181767]
[1739153081166,3.42425792,2576.2,2575.4,18.49181767]
[1739153081455,3.42425792,2576.2,2575.6,6.43277174]
[1739153081655,7.8803,2576.3,2575.6,6.43277174]
[1739153081963,3.2078,2576.2,2575.4,18.49181767]
[1739153082163,7.8803,2576.3,2575.4,18.49181767]
[1739153082164,3.2078,2575.6,2575.4,18.49181767]
[1739153082559,3.2078,2575.6,2575.4,0.00581767]
[1739153083056,7.4723,2575.5,2575.4,0.00581767]
[1739153083263,7.4723,2575.5,2574.4,3.22497174]
[1739153083458,3.2078,2575.2,2574.4,3.22497174]
[1739153083663,3.2078,2574.9,2574.0,11.03407174]
[1739153083959,3.2078,2574.6,2574.0,3.22497174]
[1739153084261,3.7292,2574.5,2573.8,2.281]
[1739153084655,3.7292,2574.5,2574.0,0.00581767]
[1739153085456,3.2078,2574.3,2574.0,0.00581767]
[1739153086358,3.664,2574.2,2574.0,0.00581767]
[1739153087956,3.2078,2574.1,2574.0,0.00581767]
[1739153088161,3.7773,2574.1,2574.0,0.00581767]
[1739153088758,6.9851,2574.1,2574.0,0.00581767]
[1739153088969,7.2279573,2574.1,2574.0,0.00581767]
[1739153089363,7.2279573,2574.1,2573.3,18.479]
[1739153089859,6.9851,2574.1,2573.3,21.6868]
[1739153090060,3.2078,2574.1,2573.6,3.22497174]
[1739153090460,3.42425792,2574.4,2573.6,3.23078941]
[1739153090866,3.7292,2574.5,2573.6,0.00581767]
[1739153090867,3.2078,2574.0,2573.6,0.00581767]
[1739153091663,3.2078,2573.7,2573.6,0.00581767]
[1739153091966,3.2078,2573.7,2572.8,40.8]
[1739153091967,3.2078,2573.7,2572.8,6.43277174]
[1739153092173,3.2078,2573.4,2572.8,6.43277174]
[1739153092363,2.93713341,2573.4,2572.8,6.43277174]
[1739153092871,2.93713341,2573.4,2573.3,3.2078]
[1739153093066,2.93713341,2573.9,2573.2,6.43277174]
[1739153093366,0.0058292,2573.6,2573.3,3.7354]
[1739153093571,0.0058292,2573.6,2573.5,3.2078]
[1739153093769,0.0058292,2573.6,2573.3,7.3958]
[1739153094559,0.0058292,2573.6,2573.5,3.2078]
[1739153094965,0.0058292,2573.6,2573.3,7.3958]
[1739153096071,0.0058292,2573.6,2573.5,3.2078]
[1739153096565,2.93713341,2574.3,2573.5,9.2078]
[1739153096773,3.7292,2574.5,2573.7,3.22497174]
[1739153097370,3.2078,2574.1,2573.5,3.2078]
[1739153097566,3.2078,2574.1,2573.3,10.62077174]
[1739153097772,3.2078,2573.7,2573.2,3.2078]
[1739153097969,3.2078,2573.7,2572.9,3.22497174]
[1739153097970,3.2078,2573.4,2572.9,3.22497174]
[1739153098177,3.6026,2574.0,2572.8,0.0058292]
[1739153098178,3.2078,2573.0,2572.8,0.0058292]
[1739153101372,3.6838,2572.9,2572.8,0.0058292]
[1739153102464,7.5102,2572.9,2572.8,0.0058292]
[1739153103171,17.94982402,2572.9,2572.1,18.49]
[1739153103371,3.2078,2572.2,2571.7,3.22497174]
[1739153103682,3.2078,2572.8,2572.1,3.22497174]
[1739153103971,0.21645792,2572.7,2572.1,3.22497174]
[1739153104174,3.2078,2572.5,2572.2,0.0058292]
[1739153104774,0.24297893,2572.4,2572.2,0.0058292]
[1739153105369,2.93713341,2572.3,2572.2,0.0058292]
[1739153105565,6.24297893,2572.4,2570.9,3.22497174]
[1739153105772,3.2078,2571.2,2570.5,3.22497174]
[1739153106275,0.24297893,2571.1,2570.5,3.22497174]
[1739153106875,0.24880813,2571.1,2570.5,3.23080094]
[1739153107178,0.0058292,2571.1,2570.9,3.22497174]
[1739153107375,0.21645792,2571.5,2571.0,7.2939]
[1739153107672,0.21645792,2571.7,2571.3,3.22497174]
[1739153107872,0.21645792,2571.9,2571.3,3.22497174]
[1739153108284,0.21645792,2571.4,2571.3,3.22497174]
[1739153108468,3.2078,2572.2,2571.3,9.22497174]
[1739153108671,0.37819806,2572.6,2572.0,3.2078]
[1739153108968,0.242972,2572.5,2572.2,3.2078]
[1739153109171,0.242972,2572.5,2572.1,7.4579]
[1739153109379,0.242972,2572.4,2571.8,2.28]
[1739153109576,3.2078,2571.9,2571.4,3.2078]
[1739153109782,3.2078,2571.9,2571.3,3.22497174]
[1739153110077,0.242972,2571.8,2571.3,3.22497174]
[1739153110578,3.2078,2571.6,2571.2,18.501]
[1739153110777,0.242972,2571.5,2571.2,18.501]
[1739153111173,3.2078,2572.3,2571.4,3.2078]
[1739153111378,0.2430408,2572.2,2571.5,3.6929]
[1739153111574,0.2430408,2572.2,2571.2,20.781]
[1739153111575,3.2078,2571.9,2571.2,20.781]
[1739153111977,0.2430408,2571.8,2571.2,18.501]
[1739153112486,3.2078,2571.6,2570.9,3.22497174]
[1739153112781,0.2430408,2571.5,2570.9,3.22497174]
[1739153112972,3.2078,2571.3,2570.8,3.7141]
[1739153113172,6.14493341,2571.3,2570.6,3.6929]
[1739153113576,9.94003341,2571.3,2570.6,3.6929]
[1739153113782,0.2430408,2571.2,2570.6,3.6929]
[1739153114375,0.60285163,2571.2,2570.6,3.6929]
[1739153114577,0.60285163,2571.2,2571.1,0.00041118]